bitfinex-derivatives/quotes_SOLF0:USTF0_20260217
["timestamp","ask_amount","ask_price","bid_price","bid_amount"]
[1771357992675,10.6268,84.738,84.692,3.96439231]
[1771357994074,3.96375609,84.741,84.692,3.96439231]
[1771357994277,8.44536302,84.763,84.705,3.96439231]
[1771357994278,14.58845609,84.755,84.705,3.96439231]
[1771357995272,10.6255,84.748,84.706,78.13956639]
[1771357995477,10.6255,84.748,84.707,3.85956639]
[1771357995676,3.97480397,84.747,84.678,3.85956639]
[1771357995980,2.00804265,84.71,84.679,74.28]
[1771357996375,3.97480397,84.719,84.679,74.28]
[1771357996576,2.00804265,84.75,84.701,3.85956639]
[1771357996776,5.98284662,84.75,84.701,3.85956639]
[1771357997680,16.60814662,84.75,84.703,10.6311]
[1771357998379,10.6261,84.743,84.701,3.85956639]
[1771357999575,3.97480397,84.778,84.71,2.00804265]
[1771357999781,3.97480397,84.769,84.711,3.85956639]
[1771358000778,10.6241,84.76,84.72,2.00804265]
[1771358003074,10.6232,84.767,84.72,16.49650904]
[1771358003279,14.59800397,84.767,84.72,16.49650904]
[1771358003880,3.97480397,84.759,84.719,74.28]
[1771358004472,3.97480397,84.743,84.698,10.6317]
[1771358004676,3.97480397,84.743,84.691,3.85956639]
[1771358004677,3.97480397,84.743,84.699,74.28]
[1771358004877,2.00804265,84.74,84.699,74.28]
[1771358005077,3.97480397,84.743,84.699,74.28]
[1771358005979,10.6263,84.742,84.699,74.28]
[1771358007375,3.97480397,84.743,84.701,3.85956639]
[1771358007580,3.97480397,84.743,84.7,2.00804265]
[1771358007581,3.97480397,84.743,84.703,3.85956639]
[1771358008581,10.6254,84.749,84.705,3.85956639]
[1771358008986,14.59940397,84.756,84.705,3.85956639]
[1771358009681,3.97480397,84.77,84.711,3.85956639]
[1771358010883,10.6243,84.758,84.717,10.6294]
[1771358011485,10.6235,84.765,84.72,3.85956639]
[1771358012786,10.6235,84.765,84.722,10.6287]
[1771358013187,10.6235,84.765,84.722,14.48826639]
[1771358014087,3.97480397,84.77,84.727,3.85956639]
[1771358014380,3.97480397,84.801,84.728,78.13956639]
[1771358014578,3.97480397,84.779,84.728,78.13956639]
[1771358014778,3.97480397,84.779,84.729,3.85956639]
[1771358015182,3.97480397,84.779,84.73,74.28]
[1771358015588,10.6235,84.764,84.729,3.85956639]
[1771358017182,3.97480397,84.78,84.729,3.85956639]
[1771358018584,3.97480397,84.78,84.73,3.85956639]
[1771358018790,3.97480397,84.78,84.732,3.85956639]
[1771358019390,3.97480397,84.78,84.733,3.85956639]
[1771358019685,3.97480397,84.794,84.733,3.85956639]
[1771358019887,3.97480397,84.794,84.735,3.85956639]
[1771358020087,3.97480397,84.794,84.737,3.85956639]
[1771358020793,10.6213,84.782,84.738,3.85956639]
[1771358021388,3.97480397,84.794,84.74,3.85956639]
[1771358023497,10.6211,84.784,84.742,3.85956639]
[1771358029694,10.6211,84.784,84.743,74.28]
[1771358029892,10.6211,84.784,84.743,77.96708237]
[1771358030094,10.6211,84.784,84.744,3.68708237]
[1771358030899,10.62,84.792,84.751,3.68708237]
[1771358034194,10.62,84.792,84.76,2.0045376]
[1771358034394,10.62,84.792,84.761,74.28]
[1771358034590,8.7079454,84.819,84.761,74.28]
[1771358034591,10.6189,84.801,84.771,3.72696555]
[1771358034801,5.6644123,84.8,84.761,74.28]
[1771358035004,3.6598747,84.786,84.757,74.28]
[1771358035502,3.6598747,84.786,84.745,74.28]
[1771358036293,10.622,84.776,84.745,74.28]
[1771358036499,3.6598747,84.775,84.745,74.28]
[1771358036701,3.6598747,84.775,84.697,21.2638]
[1771358036702,3.6598747,84.775,84.73,2.0045376]
[1771358037004,14.2842747,84.757,84.728,74.28]
[1771358038005,10.6254,84.75,84.728,74.28]
[1771358039103,10.6259,84.745,84.71,2.0045376]
[1771358039404,10.6259,84.745,84.711,74.28]
[1771358039705,3.6598747,84.749,84.711,74.28]
[1771358039902,3.6598747,84.749,84.72,2.0045376]
[1771358040601,3.6598747,84.749,84.668,21.92680189]
[1771358040602,10.6239,84.761,84.731,3.72696555]
[1771358040804,10.6239,84.761,84.74,2.0045376]
[1771358041000,10.6226,84.772,84.74,2.0045376]
[1771358041306,3.6598747,84.778,84.741,3.72696555]
[1771358042506,10.6221,84.776,84.742,74.28]
[1771358042903,3.6598747,84.778,84.742,74.28]
[1771358043400,2.0045376,84.79,84.742,74.28]
[1771358043401,10.6217,84.779,84.743,3.72696555]
[1771358045805,14.2815747,84.779,84.743,3.72696555]
[1771358047707,3.6598747,84.778,84.743,3.72696555]
[1771358049109,10.6221,84.776,84.743,3.72696555]
[1771358051107,3.6598747,84.778,84.743,3.72696555]
[1771358053303,10.6218,84.779,84.75,2.0045376]
[1771358053710,10.6218,84.779,84.751,74.28]
[1771358054309,10.62,84.792,84.76,2.0045376]
[1771358057412,10.6208,84.786,84.752,3.72696555]
[1771358057917,3.91681057,84.799,84.752,3.72696555]
[1771358058118,3.91681057,84.797,84.76,2.0045376]
[1771358058724,10.62,84.793,84.76,2.0045376]
[1771358059419,3.91681057,84.797,84.76,2.0045376]
[1771358059620,10.619,84.801,84.77,2.0045376]
[1771358060521,3.91681057,84.809,84.772,3.93936007]
[1771358060824,10.6173,84.814,84.78,5.94389767]
[1771358061021,3.91681057,84.839,84.79,2.0045376]
[1771358061320,10.6151,84.832,84.8,2.0045376]
[1771358062318,10.6151,84.832,84.801,74.28]
[1771358062514,8.60386532,84.857,84.801,74.28]
[1771358062515,13.6741315,84.849,84.81,5.94389767]
[1771358062719,13.6741315,84.849,84.801,74.28]
[1771358062720,3.91681057,84.88,84.84,2.0045376]
[1771358063021,9.75273762,84.879,84.841,74.28]
[1771358063230,3.91681057,84.88,84.841,74.28]
[1771358063629,3.91681057,84.894,84.86,2.0045376]
[1771358064229,3.91681057,84.919,84.86,2.0045376]
[1771358064735,8.59758187,84.93,84.856,74.28]
[1771358064736,3.91681057,84.927,84.88,2.0045376]
[1771358065331,3.91681057,84.927,84.808,35.4]
[1771358065332,3.91681057,84.947,84.9,2.0045376]
[1771358065534,3.91681057,84.939,84.89,2.0045376]
[1771358065832,10.6018,84.938,84.89,2.0045376]
[1771358066032,3.91681057,84.937,84.9,2.0045376]
[1771358067131,3.91681057,84.929,84.88,2.0045376]
[1771358067330,3.91681057,84.919,84.87,2.0045376]
[1771358067531,3.91681057,84.919,84.871,74.3]
[1771358068236,3.91681057,84.919,84.87,2.0045376]
[1771358068534,10.6045,84.917,84.88,2.0045376]
[1771358068729,3.91681057,84.916,84.88,2.0045376]
[1771358068936,3.91681057,84.916,84.87,2.0045376]
[1771358070035,10.6047,84.915,84.867,3.93936007]
[1771358070628,10.6047,84.915,84.868,74.26]
[1771358070831,14.52221057,84.909,84.868,74.26]
[1771358071538,3.91681057,84.89,84.85,5.94809036]
[1771358071831,3.91681057,84.89,84.851,74.26]
[1771358072233,10.6091,84.88,84.839,3.93936007]
[1771358072438,10.6091,84.88,84.839,78.19936007]
[1771358073539,10.6103,84.87,84.839,56.3622]
[1771358074733,10.6103,84.87,84.839,38.4406]
[1771358074931,10.6117,84.859,84.811,3.93936007]
[1771358075235,3.91681057,84.858,84.802,3.93936007]
[1771358075443,10.6152,84.831,84.802,3.93936007]
[1771358075733,3.91681057,84.844,84.695,165.3886]
[1771358075734,3.91681057,84.844,84.785,74.26]
[1771358076128,10.6139,84.841,84.786,74.24]
[1771358076329,3.91681057,84.86,84.786,74.24]
[1771358076535,3.91681057,84.86,84.79,5.95985901]
[1771358076732,10.6169,84.817,84.741,10.6263]
[1771358076935,3.91681057,84.839,84.76,5.95985901]
[1771358077137,3.91681057,84.839,84.78,5.95985901]
[1771358077536,10.6134,84.845,84.783,10.6211]
[1771358077738,10.6134,84.845,84.785,3.93936007]
[1771358078141,5.95985901,84.87,84.75,5.95985901]
[1771358078142,3.91681057,84.869,84.801,3.93936007]
[1771358078340,3.91681057,84.869,84.803,3.93936007]
[1771358079445,10.6106,84.867,84.805,10.6182]
[1771358079746,10.6106,84.867,84.806,3.93936007]
[1771358079938,10.6106,84.867,84.808,3.93936007]
[1771358080339,10.6095,84.877,84.81,3.93936007]
[1771358080545,10.6095,84.877,84.812,3.93936007]
[1771358081149,3.91681057,84.884,84.821,3.93936007]
[1771358081150,10.6104,84.869,84.821,3.93936007]
[1771358082342,14.52721057,84.869,84.821,78.19936007]
[1771358082543,3.91681057,84.849,84.781,3.93936007]
[1771358083044,3.91681057,84.869,84.783,3.93936007]
[1771358083239,3.91681057,84.869,84.801,3.93936007]
[1771358083447,3.91681057,84.869,84.803,3.93936007]
[1771358083839,21.2112,84.908,84.803,3.93936007]
[1771358083840,3.91681057,84.867,84.803,3.93936007]
[1771358084141,3.91681057,84.867,84.805,3.93936007]
[1771358084347,3.91681057,84.867,84.809,3.93936007]
[1771358085638,3.91681057,84.867,84.812,3.67707757]
[1771358086440,3.95401102,84.865,84.812,3.67707757]
[1771358087247,3.95401102,84.865,84.813,3.67707757]
[1771358088045,3.95401102,84.865,84.816,10.6169]
[1771358090543,3.95401102,84.861,84.813,3.67707757]
[1771358090843,3.95401102,84.861,84.805,10.6183]
[1771358091044,3.95401102,84.861,84.801,3.67707757]
[1771358091349,3.95401102,84.861,84.806,3.67707757]
[1771358092747,3.95401102,84.851,84.79,3.67707757]
[1771358093853,3.81053735,84.841,84.79,3.67707757]
[1771358094639,10.614,84.84,84.79,3.67707757]
[1771358094843,3.81053735,84.839,84.786,74.26]
[1771358095044,3.81053735,84.839,84.776,3.70944428]
[1771358095646,10.6153,84.83,84.779,10.6216]
[1771358096151,10.6153,84.83,84.77,5.95985901]
[1771358096152,10.6153,84.83,84.78,3.70944428]
[1771358097646,10.6153,84.83,84.783,10.6211]
[1771358097848,10.6162,84.823,84.78,3.70944428]
[1771358098748,3.81053735,84.861,84.791,3.70944428]
[1771358099550,3.81053735,84.857,84.797,14.32874428]
[1771358099751,3.81053735,84.857,84.798,3.70944428]
[1771358100056,10.6121,84.856,84.798,3.70944428]
[1771358100255,3.81053735,84.855,84.798,3.70944428]
[1771358100555,3.81053735,84.855,84.8,3.70944428]
[1771358101655,3.81053735,84.855,84.811,10.6175]
[1771358102151,9.77039636,84.87,84.817,10.6168]
[1771358102353,3.81053735,84.87,84.818,3.70944428]
[1771358102557,3.81053735,84.885,84.818,3.70944428]
[1771358102857,3.81053735,84.883,84.83,10.6152]
[1771358103250,3.81053735,84.883,84.81,5.95985901]
[1771358103557,3.81053735,84.883,84.81,9.66930329]
[1771358103760,3.81053735,84.883,84.811,3.70944428]
[1771358104657,3.81053735,84.872,84.818,10.6167]
[1771358105656,3.81053735,84.862,84.809,10.6178]
[1771358105859,3.81053735,84.862,84.796,3.70944428]
[1771358106458,3.81053735,84.85,84.8,10.6189]
[1771358107156,3.81053735,84.85,84.808,3.70944428]
[1771358108265,3.81053735,84.85,84.791,3.70944428]
[1771358108864,3.81053735,84.848,84.788,74.26]
[1771358109468,3.81053735,84.835,84.784,10.6209]
[1771358109767,3.81053735,84.835,84.78,3.70944428]
[1771358110169,3.81053735,84.835,84.78,14.33084428]
[1771358111066,3.81053735,84.835,84.781,3.70944428]
[1771358111263,3.81053735,84.835,84.785,3.70944428]
[1771358111757,3.81053735,84.835,84.793,10.6198]
[1771358112155,3.81053735,84.835,84.785,3.70944428]
[1771358112755,3.81053735,84.835,84.793,10.6198]
[1771358113968,3.81053735,84.835,84.794,3.70944428]
[1771358114971,3.81053735,84.835,84.796,10.6195]
[1771358115860,3.81053735,84.835,84.794,3.70944428]
[1771358116769,3.98162642,84.827,84.781,3.66901587]
[1771358117465,10.6167,84.819,84.781,3.66901587]
[1771358118776,14.59732642,84.827,84.781,14.29041587]
[1771358119066,3.98162642,84.827,84.781,14.29041587]
[1771358119276,3.98162642,84.827,84.781,3.66901587]
[1771358120672,10.6164,84.821,84.781,3.66901587]
[1771358122763,10.6147,84.835,84.781,3.66901587]
[1771358123471,3.98162642,84.855,84.797,3.66901587]
[1771358124471,10.6134,84.845,84.797,3.66901587]
[1771358124772,14.59502642,84.845,84.797,3.66901587]
[1771358124973,10.614,84.841,84.799,10.619]
[1771358127374,3.98162642,84.844,84.805,10.6183]
[1771358127973,3.98162642,84.844,84.78,74.28]
[1771358127974,10.6119,84.857,84.811,3.66901587]
[1771358128165,3.98162642,84.856,84.811,3.66901587]
[1771358128672,3.98162642,84.856,84.791,3.66901587]
[1771358129270,10.6126,84.851,84.813,3.66901587]
[1771358132084,10.613,84.848,84.813,3.66901587]
[1771358132279,3.98162642,84.847,84.798,3.66901587]
[1771358132578,3.98162642,84.847,84.801,3.66901587]
[1771358133475,10.6133,84.846,84.807,3.66901587]
[1771358133777,14.59492642,84.846,84.807,3.66901587]
[1771358133986,3.98162642,84.845,84.791,3.66901587]
[1771358134781,10.6138,84.842,84.801,3.66901587]
[1771358137580,10.6129,84.849,84.805,3.66901587]
[1771358137885,2.00151959,84.85,84.805,3.66901587]
[1771358138079,5.98314601,84.85,84.805,3.66901587]
[1771358138677,10.6138,84.842,84.81,2.00151959]
[1771358139783,10.613,84.848,84.81,2.00151959]
[1771358139987,3.98162642,84.85,84.81,2.00151959]
[1771358140184,3.98162642,84.85,84.805,3.66901587]
[1771358141789,10.6138,84.842,84.805,3.66901587]
[1771358142292,10.6138,84.842,84.81,2.00151959]
[1771358142486,3.98162642,84.85,84.81,2.00151959]
[1771358142487,10.6129,84.849,84.81,2.00151959]
[1771358142686,14.59452642,84.849,84.81,2.00151959]
[1771358142886,3.98162642,84.848,84.81,2.00151959]
[1771358143192,3.98162642,84.848,84.806,10.6181]
[1771358143788,14.59512642,84.844,84.806,10.6181]
[1771358144886,10.6128,84.85,84.812,3.87019985]
[1771358145084,3.95999735,84.857,84.812,3.87019985]
[1771358145387,3.95999735,84.857,84.821,3.87019985]
[1771358145595,3.95999735,84.869,84.83,5.87171944]
[1771358147184,3.95999735,84.869,84.831,3.87019985]
[1771358147391,10.6093,84.878,84.84,2.00151959]
[1771358147689,3.95999735,84.877,84.84,2.00151959]
[1771358147888,2.00151959,84.87,84.82,2.00151959]
[1771358148091,3.95999735,84.855,84.81,2.00151959]
[1771358149596,3.95999735,84.855,84.803,3.87019985]
[1771358149793,2.00151959,84.85,84.808,10.6179]
[1771358149992,5.96151694,84.85,84.808,10.6179]
[1771358151590,2.00151959,84.86,84.81,2.00151959]
[1771358151796,3.95999735,84.863,84.811,3.87019985]
[1771358152491,3.95999735,84.863,84.82,2.00151959]
[1771358152691,3.95999735,84.863,84.82,12.61791959]
[1771358152892,3.72714311,84.875,84.821,3.88722648]
[1771358153294,10.6106,84.868,84.826,10.6157]
[1771358153490,10.6106,84.868,84.826,14.50292648]
[1771358153694,3.72714311,84.875,84.826,14.50292648]
[1771358153894,3.72714311,84.875,84.83,10.6152]
[1771358154301,3.72714311,84.875,84.83,12.61671959]
[1771358155197,3.72714311,84.875,84.84,2.00151959]
[1771358155402,3.72714311,84.875,84.837,10.6144]
[1771358156198,3.72714311,84.874,84.831,3.88722648]
[1771358157404,10.61,84.873,84.832,10.6149]
[1771358158299,10.6091,84.879,84.835,3.88722648]
[1771358159703,3.72714311,84.885,84.85,2.00151959]
[1771358160103,3.72714311,84.899,84.85,5.88874607]
[1771358160305,3.72714311,84.899,84.86,12.61301959]
[1771358160503,3.72714311,84.899,84.861,3.88722648]
[1771358160908,10.6068,84.898,84.861,3.88722648]
[1771358161105,3.72714311,84.897,84.85,2.00151959]
[1771358162000,9.81854916,84.91,84.851,3.88722648]
[1771358162201,9.81854916,84.91,84.805,35.4]
[1771358162202,3.72714311,84.946,84.9,2.00151959]
[1771358162407,3.72714311,84.946,84.91,2.00151959]
[1771358162708,3.72714311,84.962,84.92,2.00151959]
[1771358163203,3.72714311,84.962,84.93,2.00151959]
[1771358164006,3.72714311,84.962,84.92,2.00151959]
[1771358166407,9.84982982,84.999,84.898,74.24]
[1771358166408,5.7286627,84.98,84.931,3.88722648]
[1771358166605,164.7193,85.04,84.9,3.88722648]
[1771358166606,3.72714311,84.969,84.9,3.88722648]
[1771358166809,5.7286627,84.95,84.9,5.88874607]
[1771358167208,3.72714311,84.948,84.9,5.88874607]
[1771358167411,3.72714311,84.948,84.9,2.00151959]
[1771358167606,3.72714311,84.948,84.89,2.00151959]
[1771358168199,10.6022,84.935,84.89,2.00151959]
[1771358168404,3.72714311,84.934,84.89,2.00151959]
[1771358169601,3.72714311,84.929,84.886,3.88722648]
[1771358169811,3.72714311,84.981,84.891,3.88722648]
[1771358170014,3.72714311,84.981,84.851,165.0856]
[1771358170015,10.5991,84.959,84.91,2.00151959]
[1771358170202,3.72714311,84.958,84.91,2.00151959]
[1771358170607,2.00151959,84.94,84.901,3.88722648]
[1771358170811,2.00151959,84.94,84.89,2.00151959]
[1771358171114,3.72714311,84.939,84.89,2.00151959]
[1771358171716,3.72714311,84.938,84.89,2.00151959]
[1771358171919,3.72714311,84.929,84.88,2.00151959]
[1771358172114,10.6039,84.921,84.88,2.00151959]
[1771358172309,3.72714311,84.919,84.872,3.88722648]
[1771358172508,5.7286627,84.91,84.86,2.00151959]
[1771358172714,3.72714311,84.909,84.86,2.00151959]
[1771358173417,14.33254311,84.909,84.862,3.88722648]
[1771358173812,3.72714311,84.889,84.84,2.00151959]
[1771358174012,2.00151959,84.88,84.833,3.88722648]
[1771358174212,2.00151959,84.87,84.821,10.6163]
[1771358174623,3.94248358,84.869,84.818,3.88722648]
[1771358174818,2.00151959,84.86,84.818,3.88722648]
[1771358175926,3.94248358,84.859,84.803,3.95404279]
[1771358176115,3.94248358,84.859,84.79,5.95692515]
[1771358176514,3.94248358,84.849,84.788,3.95404279]
[1771358176911,3.94248358,84.869,84.802,3.95404279]
[1771358177313,3.94248358,84.866,84.803,3.95404279]
[1771358178420,10.6112,84.863,84.803,3.95404279]
[1771358178715,3.94248358,84.866,84.806,3.95404279]
[1771358179518,10.6109,84.865,84.814,3.95404279]
[1771358180819,3.94248358,84.882,84.814,3.95404279]
[1771358181825,10.6103,84.87,84.816,3.95404279]
[1771358182028,3.94248358,84.87,84.816,3.95404279]
[1771358182320,3.94248358,84.889,84.816,3.95404279]
[1771358182919,3.94248358,84.904,84.826,3.95404279]
[1771358183228,3.94248358,84.904,84.841,3.95404279]
[1771358184019,3.94248358,84.899,84.841,3.95404279]
[1771358184725,3.94248358,84.899,84.826,3.95404279]
[1771358185319,3.94248358,84.899,84.836,10.6145]
[1771358185923,3.94248358,84.893,84.836,10.6145]
[1771358186819,14.55038358,84.889,84.836,10.6145]
[1771358187024,3.94248358,84.888,84.836,10.6145]
[1771358187824,3.94248358,84.884,84.826,3.95404279]
[1771358188220,5.95692515,84.88,84.826,3.95404279]
[1771358188422,3.94248358,84.879,84.811,3.95404279]
[1771358189623,3.94248358,84.895,84.83,3.95404279]
[1771358189820,3.94248358,84.895,84.831,3.95404279]
[1771358190723,10.6074,84.893,84.841,3.95404279]
[1771358191933,10.6074,84.893,84.844,3.95404279]
[1771358192129,3.94248358,84.895,84.844,3.95404279]
[1771358192730,14.54958358,84.895,84.844,3.95404279]
[1771358195330,3.94248358,84.926,84.865,3.95404279]
[1771358196437,3.94248358,84.944,84.878,3.95404279]
[1771358196639,3.94248358,84.944,84.891,3.95404279]
[1771358197034,3.94248358,84.969,84.891,3.95404279]
[1771358197430,3.94248358,84.969,84.899,3.95404279]
[1771358197636,3.94248358,84.969,84.911,3.95404279]
[1771358198040,10.5968,84.978,84.925,3.95404279]
[1771358198338,3.94248358,85.009,84.931,3.95404279]
[1771358198533,3.94248358,84.977,84.914,3.95404279]
[1771358199135,3.94248358,85.009,84.916,3.95404279]
[1771358200136,3.94248358,85.009,84.921,3.95404279]
[1771358200336,5.9371489,85.05,84.9,5.9371489]
[1771358200337,3.94248358,85.005,84.944,3.95404279]
[1771358200546,74.22,85.041,84.944,3.95404279]
[1771358200547,3.94248358,84.999,84.944,3.95404279]
[1771358201837,3.94248358,84.979,84.909,3.95404279]
[1771358202741,5.9371489,84.98,84.909,3.95404279]
[1771358202742,3.94248358,84.97,84.912,10.6049]
[1771358205944,3.94248358,84.97,84.92,10.6039]
[1771358208642,5.9371489,84.98,84.924,3.95769718]
[1771358208842,10.5961,84.984,84.924,3.95769718]
[1771358209146,3.73120753,84.986,84.924,3.95769718]
[1771358210140,5.9371489,85.0,84.924,3.95769718]
[1771358210141,5.9371489,84.97,84.924,3.95769718]
[1771358210339,3.73120753,84.969,84.898,3.95769718]
[1771358211046,3.73120753,84.969,84.923,10.6036]
[1771358212748,3.85038689,84.967,84.914,10.6047]
[1771358213638,5.9371489,85.0,84.905,3.75976692]
[1771358213842,5.9371489,84.98,84.905,3.75976692]
[1771358214251,5.9371489,84.98,84.883,21.2172]
[1771358214252,10.5955,84.989,84.936,3.75976692]
[1771358214847,9.78753579,85.0,84.946,10.6007]
[1771358214848,10.5943,84.998,84.946,10.6007]
[1771358215743,14.44608689,84.987,84.936,3.75976692]
[1771358215948,3.85038689,84.986,84.936,3.75976692]
[1771358216448,10.5967,84.979,84.936,3.75976692]
[1771358216843,5.9371489,84.98,84.936,3.75976692]
[1771358220151,3.85038689,84.979,84.93,10.6027]
[1771358220345,3.85038689,84.979,84.93,14.36246692]
[1771358220556,10.5973,84.975,84.933,3.75976692]
[1771358220751,3.85038689,84.975,84.916,3.75976692]
[1771358220952,3.85038689,84.959,84.899,3.75976692]
[1771358221854,3.85038689,84.959,84.886,3.75976692]
[1771358222745,10.6009,84.945,84.896,3.75976692]
[1771358222942,3.85038689,84.944,84.896,3.75976692]
[1771358223553,10.6011,84.943,84.896,3.75976692]
[1771358224553,3.85038689,84.935,84.886,10.6082]
[1771358224751,3.85038689,84.919,84.867,3.75976692]
[1771358224950,3.85038689,84.909,84.853,3.75976692]
[1771358225257,3.85038689,84.929,84.853,3.75976692]
[1771358225553,3.85038689,84.929,84.854,3.75976692]
[1771358226550,3.85038689,84.929,84.882,3.75976692]
[1771358226945,3.85038689,84.929,84.863,3.75976692]
[1771358227148,10.6039,84.921,84.872,10.6099]
[1771358227349,3.85038689,84.92,84.863,3.75976692]
[1771358227746,10.6053,84.91,84.863,3.75976692]
[1771358227948,3.85038689,84.899,84.831,3.75976692]
[1771358228856,10.6078,84.89,84.843,10.6135]
[1771358229354,3.85038689,84.897,84.843,10.6135]
[1771358230353,164.8742,84.96,84.81,5.9371489]
[1771358230354,3.85038689,84.915,84.846,3.75976692]
[1771358231455,10.6056,84.908,84.857,3.75976692]
[1771358232657,10.6056,84.908,84.859,3.75976692]
[1771358233055,3.85038689,84.915,84.859,3.75976692]
[1771358233253,3.85038689,84.915,84.861,3.75976692]
[1771358233556,3.85038689,84.93,84.861,3.75976692]
[1771358234350,10.605,84.912,84.861,3.75976692]
[1771358234655,3.68414471,84.916,84.861,3.75976692]
[1771358235260,14.28874471,84.915,84.861,3.75976692]
[1771358235958,3.68414471,84.915,84.87,10.6101]
[1771358241559,3.68414471,84.929,84.875,3.96050753]
[1771358242863,10.603,84.928,84.884,10.6084]
[1771358243064,3.68414471,84.927,84.884,10.6084]
[1771358243261,3.68414471,84.957,84.907,3.96050753]
[1771358243858,3.68414471,84.957,84.856,165.0759]
[1771358243859,3.68414471,84.949,84.885,3.96050753]
[1771358244862,3.68414471,84.939,84.888,10.608]
[1771358245365,3.68414471,84.938,84.894,10.6071]
[1771358246064,3.68414471,84.938,84.9,10.6064]
[1771358246866,16.5374489,84.95,84.906,10.6057]
[1771358247064,3.68414471,84.949,84.906,10.6057]
[1771358248762,3.68414471,84.945,84.897,10.6068]
[1771358249158,3.68414471,84.945,84.885,3.96050753]
[1771358250565,10.6002,84.951,84.885,3.96050753]
[1771358251762,10.6002,84.951,84.909,10.6053]
[1771358252357,14.28434471,84.951,84.901,10.6062]
[1771358252566,10.6005,84.948,84.901,10.6062]
[1771358252767,10.6005,84.948,84.899,3.96050753]
[1771358253666,10.6005,84.948,84.907,10.6056]
[1771358255465,3.68414471,84.942,84.885,3.96050753]
[1771358256668,10.6022,84.935,84.893,10.6073]
[1771358256868,3.68414471,84.934,84.885,3.96050753]
[1771358257267,3.68414471,84.934,84.892,3.96050753]
[1771358257465,3.68414471,84.949,84.892,3.96050753]
[1771358258771,14.28564471,84.94,84.895,10.607]
[1771358260170,3.68414471,84.929,84.865,3.96050753]
[1771358261272,10.6041,84.919,84.872,10.6099]
[1771358263475,14.28824471,84.919,84.872,10.6099]
[1771358263866,3.68414471,84.918,84.865,3.96050753]
[1771358264673,10.6059,84.905,84.865,3.96050753]
[1771358264868,3.78672241,84.936,84.875,3.73414383]
[1771358265966,9.85889583,84.935,84.877,3.73414383]
[1771358266277,9.85889583,84.934,84.877,3.73414383]
[1771358266478,9.85889583,84.933,84.877,3.73414383]
[1771358266777,9.85889583,84.935,84.877,3.73414383]
[1771358266976,9.85889583,84.934,84.877,3.73414383]
[1771358267177,9.85889583,84.933,84.877,3.73414383]
[1771358267379,10.6042,84.919,84.877,3.73414383]
[1771358267576,9.85889583,84.935,84.877,3.73414383]
[1771358267875,10.6031,84.928,84.882,10.6087]
[1771358268077,10.6031,84.928,84.883,3.73414383]
[1771358268378,10.6038,84.922,84.883,3.73414383]
[1771358268785,1.99779171,84.93,84.883,3.73414383]
[1771358268977,10.6029,84.929,84.885,3.73414383]
[1771358269171,3.78672241,84.936,84.89,1.99779171]
[1771358269375,35.33,85.006,84.862,74.2]
[1771358269376,3.78672241,84.967,84.921,3.73414383]
[1771358269574,1.99779171,84.97,84.869,35.33]
[1771358269575,3.78672241,84.981,84.94,1.99779171]
[1771358269780,3.78672241,84.996,84.95,1.99779171]
[1771358269983,1.99779171,84.98,84.93,1.99779171]
[1771358270179,5.78451412,84.98,84.934,10.6022]
[1771358270783,3.78672241,84.98,84.941,10.6013]
[1771358271078,5.78451412,84.98,84.94,1.99779171]
[1771358271283,5.78451412,84.98,84.935,3.73414383]
[1771358271479,3.78672241,84.999,84.951,3.73414383]
[1771358272682,5.93578562,85.02,84.938,3.60822308]
[1771358272683,3.62513034,84.993,84.938,3.60822308]
[1771358273582,3.62513034,84.989,84.927,10.6031]
[1771358274889,3.62513034,84.982,84.927,10.6031]
[1771358276290,3.62513034,84.974,84.923,3.60822308]
[1771358277086,3.62513034,84.972,84.923,3.60822308]
[1771358277484,3.62513034,84.992,84.911,3.60822308]
[1771358277893,3.62513034,84.979,84.911,3.60822308]
[1771358278092,3.62513034,84.959,84.911,3.60822308]
[1771358278393,3.62513034,84.959,84.881,3.60822308]
[1771358279190,3.62513034,84.949,84.899,10.6066]
[1771358279397,3.62513034,84.939,84.881,3.60822308]
[1771358280691,3.62513034,84.939,84.889,10.6078]
[1771358281295,5.93578562,84.94,84.881,3.60822308]
[1771358281296,3.62513034,84.93,84.881,3.60822308]
[1771358281598,3.62513034,84.93,84.866,3.60822308]
[1771358282096,3.62513034,84.919,84.868,10.6104]
[1771358282499,5.93578562,84.94,84.887,3.60822308]
[1771358283093,3.62513034,84.938,84.889,10.6078]
[1771358283496,3.62513034,84.938,84.866,3.60822308]
[1771358284490,3.62513034,84.918,84.867,10.6106]
[1771358285498,3.62513034,84.917,84.866,3.60822308]
[1771358286298,14.23043034,84.91,84.866,3.60822308]
[1771358286494,5.93578562,84.9,84.848,3.60822308]